fUSD/lending_fUSD_20251224
["ID","MTS","AMOUNT","RATE_DAILY","PERIOD"]
[399665157,1766591433268,-500.0,0.00014694,2]
[399665159,1766591433277,-543.23405484,0.00014694,2]
[399665161,1766591433287,-500.0,0.00014694,2]
[399665163,1766591433296,-500.0,0.00014694,2]
[399665165,1766591433306,-500.0,0.00014694,2]
[399665167,1766591433316,-214.95929311,0.00014694,2]
[399665169,1766591433325,-500.0,0.00014694,2]
[399665171,1766591433335,-500.0,0.00014694,2]
[399665173,1766591433345,-214.95929311,0.00014694,2]
[399665175,1766591433355,-500.0,0.00014694,2]
[399665177,1766591433364,-89.49980659,0.00014695,2]
[399665179,1766591433379,-437.04724884,0.00014695,2]
[399665182,1766591433391,-583.18548524,0.00014695,2]
[399665216,1766591437768,-7389.36454677,0.00014695,2]
[399665217,1766591437946,-4287.09840629,0.00014695,2]
[399665218,1766591437956,-151696.0622647,0.00014695,2]
[399665219,1766591437969,-226685.39068864,0.00014695,2]
[399665220,1766591437981,-16894.57282824,0.00014695,2]
[399665221,1766591437992,-76290.07480754,0.00014695,2]
[399665222,1766591438004,-528433.89941088,0.00014695,2]
[399665223,1766591438014,-1474.41,0.00014795,2]
[399665224,1766591438024,-999.99,0.00014795,2]
[399665225,1766591438035,-36437.44,0.00014795,2]
[399665226,1766591438044,-150.99,0.00014795,2]
[399665227,1766591438054,-1206.07,0.00014795,2]
[399665228,1766591438064,-9999.99,0.00014795,2]
[399665229,1766591438075,-2500.0,0.00014795,2]
[399665230,1766591438085,-3155.28355614,0.00014796,2]
[399665231,1766591438096,-853.58904067,0.00014837,2]
[399665232,1766591438106,-768.376,0.00014854,2]
[399665233,1766591438116,-171.734,0.00014854,2]
[399665234,1766591438126,-1102.4,0.00014855,2]
[399665235,1766591438136,-9999.99,0.00014855,2]
[399665236,1766591438146,-200.0,0.00014886,2]
[399665237,1766591438156,-207.4,0.00014886,2]
[399665238,1766591438165,-500.0,0.00014886,2]
[399665239,1766591438175,-500.0,0.00014886,2]
[399665240,1766591438185,-500.0,0.00014886,2]
[399665241,1766591438195,-500.0,0.00014886,2]
[399665242,1766591438205,-500.0,0.00014886,2]
[399665243,1766591438215,-500.0,0.00014886,2]
[399665244,1766591438225,-500.0,0.00014886,2]
[399665245,1766591438235,-500.0,0.00014886,2]
[399665246,1766591438245,-500.0,0.00014886,2]
[399665247,1766591438255,-500.0,0.00014886,2]
[399665248,1766591438265,-500.0,0.00014886,2]
[399665249,1766591438275,-151.0,0.00014886,2]
[399665250,1766591438286,-151.0,0.00014886,2]
[399665251,1766591438296,-151.0,0.00014886,2]
[399665252,1766591438306,-151.0,0.00014886,2]
[399665253,1766591438316,-151.0,0.00014886,2]
[399665254,1766591438327,-151.0,0.00014886,2]
[399665255,1766591438337,-151.0,0.00014886,2]
[399665256,1766591438348,-151.0,0.00014886,2]
[399665257,1766591438358,-151.0,0.00014886,2]
[399665258,1766591438367,-151.0,0.00014886,2]
[399665259,1766591438377,-151.0,0.00014886,2]
[399665260,1766591438387,-500.0,0.00014886,2]
[399665261,1766591438398,-200.0,0.00014886,2]
[399665262,1766591438408,-500.0,0.00014894,2]
[399665263,1766591438418,-500.0,0.00014894,2]
[399665264,1766591438428,-500.0,0.00014894,2]
[399665265,1766591438439,-500.55152277,0.00014894,2]
[399665266,1766591438449,-500.0,0.00014894,2]
[399665267,1766591438460,-500.0,0.00014894,2]
[399665268,1766591438471,-469.51043734,0.00014894,2]
[399665269,1766591438481,-500.0,0.00014894,2]
[399665270,1766591438492,-532.74252407,0.00014894,2]
[399665271,1766591438502,-150.0,0.00014894,2]
[399665272,1766591438512,-33504.5899,0.00014896,2]
[399665273,1766591438522,-1000.0,0.00014896,2]
[399665274,1766591438532,-12786.19549365,0.0001494,2]
[399665275,1766591438542,-500.0,0.00014968,2]
[399665276,1766591438553,-1281.4,0.00014968,2]
[399665277,1766591438563,-500.0,0.00014995,2]
[399665278,1766591438573,-500.0,0.00014995,2]
[399665279,1766591438584,-500.0,0.00014995,2]
[399665280,1766591438595,-500.0,0.00014995,2]
[399665281,1766591438606,-500.0,0.00014995,2]
[399665282,1766591438615,-531.5118952,0.00014995,2]
[399665283,1766591438627,-500.0,0.00014995,2]
[399665284,1766591438638,-500.0,0.00014995,2]
[399665285,1766591438650,-500.0,0.00014995,2]
[399665286,1766591438662,-500.0,0.00014995,2]
[399665287,1766591438672,-500.0,0.00014995,2]
[399665288,1766591438683,-194.84476554,0.00014995,2]
[399665289,1766591438693,-500.0,0.00014995,2]
[399665290,1766591438703,-960.68673327,0.00015009,2]
[399665291,1766591438713,-3155.28355606,0.0001503,2]
[399665292,1766591438722,-174.83400543,0.00015173,2]
[399665293,1766591438732,-502.0801392,0.00015173,2]
[399665294,1766591438742,-500.0,0.00015173,2]
[399665295,1766591438751,-501.65480371,0.00015173,2]
[399665296,1766591438762,-164.80244684,0.00015173,2]
[399665297,1766591438771,-500.0,0.00015173,2]
[399665298,1766591438781,-500.0,0.00015173,2]
[399665299,1766591438792,-502.01719743,0.00015173,2]
[399665300,1766591438802,-500.0,0.00015173,2]
[399665301,1766591438813,-500.35332728,0.00015173,2]
[399665302,1766591438823,-500.0,0.00015173,2]
[399665303,1766591438833,-500.0,0.00015173,2]
[399665304,1766591438843,-500.0,0.00015173,2]
[399665305,1766591438854,-500.0,0.00015173,2]
[399665306,1766591438864,-501.23285563,0.00015173,2]
[399665307,1766591438874,-160.33441349,0.00015173,2]
[399665308,1766591438885,-500.0,0.00015173,2]
[399665309,1766591438895,-162.11626746,0.00015173,2]
[399665310,1766591438905,-12786.19549365,0.00015185,2]
[399665311,1766591438915,-500.0,0.00015242,2]
[399665312,1766591438926,-1281.4,0.00015242,2]
[399665313,1766591438936,-177.95989573,0.00015256,2]
[399665314,1766591438947,-496.0,0.00015259,2]
[399665315,1766591438957,-3155.28355606,0.00015264,2]
[399665316,1766591438967,-408.0,0.00015266,2]
[399665317,1766591438978,-150.0,0.00015288,2]
[399665318,1766591438989,-150.0,0.00015288,2]
[399665319,1766591438999,-150.0,0.00015288,2]
[399665320,1766591439010,-960.68673327,0.00015324,2]
[399665321,1766591439021,-12786.19549365,0.0001543,2]
[399665322,1766591439031,-200.0,0.00015434,2]
[399665323,1766591439042,-500.0,0.00015434,2]
[399665324,1766591439051,-200.0,0.00015434,2]
[399665325,1766591439062,-3155.28355606,0.00015497,2]
[399665326,1766591439072,-500.0,0.00015516,2]
[399665327,1766591439082,-236.66271059,0.00015516,2]
[399665328,1766591439092,-1281.4,0.00015516,2]
[399665329,1766591439102,-500.0,0.00015554,2]
[399665330,1766591439112,-166.66,0.00015601,2]
[399665331,1766591439123,-960.68673327,0.00015639,2]
[399665332,1766591439133,-1000.0,0.00015721,2]
[399665333,1766591439144,-1000.0,0.00015721,2]
[399665334,1766591439153,-500.8778337,0.00015721,2]
[399665335,1766591439165,-1000.0,0.00015721,2]
[399665336,1766591439175,-1000.0,0.00015721,2]
[399665337,1766591439190,-1000.0,0.00015721,2]
[399665338,1766591439200,-1000.0,0.00015721,2]
[399665339,1766591439210,-1000.0,0.00015721,2]
[399665340,1766591439220,-3155.28355606,0.00015731,2]
[399665341,1766591439230,-500.0,0.0001579,2]
[399665342,1766591439240,-1281.4,0.0001579,2]
[399665343,1766591439250,-300.0,0.00015805,2]
[399665344,1766591439261,-4264.19913124,0.00015808,2]
[399665345,1766591439271,-188.4651769,0.00015808,2]
[399665346,1766591439281,-300.0,0.00015808,2]
[399665347,1766591439291,-193.0,0.00015808,2]
[399665348,1766591439302,-600.0,0.00015808,2]
[399665349,1766591439312,-300.0,0.00015808,2]
[399665350,1766591439322,-250.0,0.00015808,2]
[399665351,1766591439332,-195.0,0.00015808,2]
[399665352,1766591439342,-300.0,0.00015808,2]
[399665353,1766591439352,-255.0,0.00015826,2]
[399665354,1766591439362,-960.68673327,0.00015955,2]
[399665355,1766591439372,-3155.28355606,0.00015965,2]
[399665356,1766591439382,-500.0,0.00016064,2]
[399665357,1766591439391,-1281.4,0.00016064,2]
[399665358,1766591439401,-420.0,0.00016086,2]
[399665359,1766591439411,-166.66,0.00016116,2]
[399665360,1766591439421,-250.0,0.00016154,2]
[399665361,1766591439431,-195.0,0.00016154,2]
[399665362,1766591439440,-1680.0,0.00016162,2]
[399665363,1766591439450,-300.0,0.00016162,2]
[399665368,1766591439792,-3155.28355606,0.00016199,2]
[399665369,1766591439805,-1500.0,0.00016268,2]
[399665370,1766591439815,-1500.0,0.00016268,2]
[399665371,1766591439826,-1007.00799583,0.00016268,2]
[399665372,1766591439836,-1500.0,0.00016268,2]
[399665373,1766591439846,-1500.0,0.00016268,2]
[399665375,1766591439857,-1500.0,0.00016268,2]
[399665376,1766591439867,-1500.0,0.00016268,2]
[399665377,1766591439877,-960.68673327,0.0001627,2]
[399665378,1766591439888,-201.4900217,0.00016338,2]
[399665379,1766591439898,-236.66271059,0.00016338,2]
[399665380,1766591439908,-1281.4,0.00016338,2]
[399665381,1766591439919,-3155.28355606,0.00016432,2]
[399665382,1766591439930,-500.0,0.00016438,2]
[399665383,1766591439941,-500.0,0.00016438,2]
[399665384,1766591439951,-500.0,0.00016438,2]
[399665385,1766591439962,-500.0,0.00016438,2]
[399665386,1766591439973,-500.0,0.00016438,2]
[399665387,1766591439983,-500.0,0.00016438,2]
[399665388,1766591439994,-500.0,0.00016438,2]
[399665389,1766591440005,-323.51701517,0.00016438,2]
[399665390,1766591440024,-500.0,0.00016438,2]
[399665391,1766591440035,-500.0,0.00016438,2]
[399665392,1766591440046,-500.0,0.00016438,2]
[399665393,1766591440056,-500.0,0.00016438,2]
[399665394,1766591440066,-500.0,0.00016438,2]
[399665395,1766591440076,-500.0,0.00016438,2]
[399665396,1766591440087,-500.0,0.00016438,2]
[399665397,1766591440097,-500.0,0.00016438,2]
[399665398,1766591440108,-500.0,0.00016438,2]
[399665399,1766591440119,-500.0,0.00016438,2]
[399665400,1766591440129,-500.0,0.00016438,2]
[399665401,1766591440140,-500.0,0.00016438,2]
[399665402,1766591440150,-500.0,0.00016438,2]
[399665403,1766591440162,-500.0,0.00016438,2]
[399665404,1766591440173,-500.0,0.00016438,2]
[399665405,1766591440186,-500.0,0.00016438,2]
[399665406,1766591440207,-500.0,0.00016438,2]
[399665407,1766591440218,-500.0,0.00016438,2]
[399665408,1766591440228,-500.0,0.00016438,2]
[399665409,1766591440239,-500.0,0.00016438,2]
[399665410,1766591440249,-500.0,0.00016438,2]
[399665411,1766591440259,-500.0,0.00016438,2]
[399665412,1766591440270,-16450.88,0.00016438,2]
[399665413,1766591440281,-829.99520841,0.00016529,7]
[399665414,1766591440291,-5512.0,0.00016539,2]
[399665415,1766591440301,-960.68673327,0.00016585,2]
[399665416,1766591440312,-5512.0,0.00016588,2]
[399665417,1766591440321,-1281.4,0.00016612,2]
[399665418,1766591440331,-166.66,0.00016631,2]
[399665419,1766591440341,-3155.28355606,0.00016666,2]
[399665420,1766591440351,-2000.0,0.00016816,2]
[399665421,1766591440362,-339.47657605,0.00016816,2]
[399665422,1766591440372,-853.92874992,0.00016816,2]
[399665423,1766591440382,-220.50931807,0.00016816,2]
[399665424,1766591440391,-2000.0,0.00016816,2]
[399665425,1766591440402,-2000.0,0.00016816,2]
[399665426,1766591440412,-4621.2,0.00016818,2]
[399665427,1766591440423,-5512.0,0.0001686,2]
[399665428,1766591440432,-1281.4,0.00016886,2]
[399665429,1766591440442,-492.46129674,0.000169,2]
[399665430,1766591440452,-10000.0,0.000169,2]
[399665431,1766591440463,-3155.28355606,0.000169,2]
[399665432,1766591440473,-960.68673327,0.000169,2]
[399665433,1766591440484,-185.72541202,0.000169,2]
[399665434,1766591440494,-194.89876376,0.000169,2]
[399665435,1766591440504,-398.40831123,0.000169,2]
[399665436,1766591440514,-533.29144668,0.000169,2]
[399665437,1766591440524,-1771.2772039,0.000169,2]
[399665438,1766591440534,-500.0,0.00016973,2]
[399665439,1766591440544,-150.0,0.00016973,2]
[399665440,1766591440557,-914.1698167,0.00016982,2]
[399665441,1766591440567,-177.95989573,0.0001699,2]
[399665442,1766591440577,-177.95989573,0.0001699,2]
[399665443,1766591440587,-48351.2993662,0.00016993,2]
[399665444,1766591440597,-3101.6577612,0.00016996,2]
[399665445,1766591440607,-7327.4623062,0.00016997,2]
[399665446,1766591440617,-8650.5683041,0.00016997,2]
[399665447,1766591440628,-151.0,0.00016997,2]
[399665448,1766591440638,-500.0,0.00016998,2]
[399665449,1766591440648,-500.0,0.00016998,2]
[399665450,1766591440658,-500.0,0.00016999,2]
[399665451,1766591440669,-500.0,0.00016999,2]
[399665452,1766591440679,-500.0,0.00016999,2]
[399665453,1766591440689,-500.0,0.00016999,2]
[399665454,1766591440699,-500.0,0.00016999,2]
[399665455,1766591440709,-500.0,0.00016999,2]
[399665456,1766591440719,-500.0,0.00016999,2]
[399665457,1766591440729,-500.0,0.00016999,2]
[399665458,1766591440739,-500.0,0.00016999,2]
[399665459,1766591440749,-282.03365894,0.00016999,2]
[399665460,1766591440759,-300.0,0.00016999,2]
[399665461,1766591440769,-681.43055394,0.00016999,2]
[399665462,1766591440783,-500.0,0.00016999,2]
[399665463,1766591440793,-449.54,0.00016999,2]
[399665464,1766591440804,-300.0,0.00016999,2]
[399665465,1766591440814,-300.0,0.00016999,2]
[399665466,1766591440824,-157.53838756,0.00016999,2]
[399665467,1766591440835,-300.0,0.00016999,2]
[399665468,1766591440845,-666.0,0.00016999,2]
[399665469,1766591440855,-553.82359003,0.00016999,2]
[399665470,1766591440866,-1985659.05834969,0.00017,2]
[399665471,1766591441263,-203.59064575,0.00016855,2]
[399665472,1766591441273,-6013.52444336,0.00017,2]
[399665473,1766591441286,-2576.0915,0.00017,2]
[399665474,1766591441591,-500.77724877,0.00015173,2]
[399665475,1766591441601,-267131.62267628,0.00017,2]
[399665476,1766591441614,-2781.5359946,0.00017,2]
[399665477,1766591441629,-416.50973749,0.00017,2]
[399665478,1766591441640,-3928.9490662,0.00017,2]
[399665479,1766591441652,-844.27,0.00017,2]
[399665480,1766591441663,-506.37642362,0.00017,2]
[399665481,1766591441675,-12986.48553838,0.00017,2]
[399665482,1766591441687,-9449.84993306,0.00017,2]
[399665483,1766591441703,-23872.8047668,0.00017,2]
[399665484,1766591441715,-521.32791878,0.00017,2]
[399665485,1766591441727,-481.03654491,0.00017,2]
[399665486,1766591441742,-893.0,0.00017,2]
[399665487,1766591441753,-2590.80063541,0.00017,2]
[399665488,1766591441768,-382.54190737,0.00017,2]
[399665489,1766591442209,-1.7e-07,0.00017,2]
[399665490,1766591442232,-564.11572434,0.00017,2]
[399665491,1766591442244,-6081.79999991,0.00017,2]
[399665492,1766591443057,-12786.19549365,0.00015675,2]
[399665493,1766591443067,-44488.72535677,0.00017,2]
[399665494,1766591443232,-15224.10417946,0.00017,2]
[399665516,1766591445891,-151.0,0.00015581,2]
[399665517,1766591445901,-544.29236772,0.00017,2]
[399665518,1766591445912,-9535.13739471,0.00017,2]
[399665519,1766591445955,-266144.35066238,0.00017,2]
[399665520,1766591446040,-1529.2089369,0.00017,2]
[399665521,1766591446247,-137260.40546951,0.00017,2]
[399665522,1766591446318,-954.45988669,0.00017,2]
[399665527,1766591970287,500.0,0.0001426,2]
[399665528,1766592161716,941.65,0.00013699,2]
[399665530,1766592399710,166.66,0.00013686,2]
[399665531,1766592399775,166.66,0.00013975,2]
[399665532,1766592399945,166.66,0.00014263,2]
[399665533,1766592459540,-208.42,0.0001431,3]
[399665535,1766592475201,754.45,0.0001431,2]
[399665536,1766592539152,200.0,0.00014283,2]
[399665537,1766592563436,1000.0,0.00014064,2]
[399665538,1766592611537,-166.66,0.00014551,2]
[399665539,1766592611563,-300.0,0.00014588,2]
[399665540,1766592611588,-300.0,0.00014618,2]
[399665541,1766592611613,-1500.0,0.00014624,2]
[399665542,1766592611639,-250.0,0.00014631,2]
[399665543,1766592611663,-300.0,0.00014637,2]
[399665544,1766592611689,-195.0,0.00014649,2]
[399665545,1766592611715,-250.0,0.00014655,2]
[399665546,1766592611740,-200.0,0.00014675,2]
[399665547,1766592611764,-355.52510889,0.00014691,2]
[399665548,1766592611790,-1200.0,0.00014706,2]
[399665549,1766592611814,-5723.95,0.00014707,2]
[399665550,1766592611839,-305.18,0.00014736,2]
[399665551,1766592611866,-305.18,0.00014736,2]
[399665552,1766592611891,-300.0,0.00014745,2]
[399665553,1766592611925,-1000000.0,0.00014746,2]
[399665554,1766592611950,-151.0,0.00014837,2]
[399665555,1766592611975,-500.0,0.00014837,2]
[399665556,1766592612001,-151.0,0.00014837,2]
[399665557,1766592612025,-200.0,0.00014837,2]
[399665558,1766592612050,-500.0,0.00014837,2]
[399665559,1766592612075,-200.0,0.00014837,2]
[399665560,1766592612101,-200.0,0.00014837,2]
[399665561,1766592612129,-166.66,0.00014839,2]
[399665562,1766592612154,-24165.04,0.00014846,2]
[399665563,1766592612178,-500.0,0.00014894,2]
[399665564,1766592612202,-500.0,0.00014894,2]
[399665565,1766592612228,-449.54,0.00014894,2]
[399665566,1766592612255,-150.0,0.0001491,2]
[399665567,1766592612280,-174.63,0.00014911,2]
[399665568,1766592612305,-9999.99,0.00014911,2]
[399665569,1766592612329,-150.0,0.00014961,2]
[399665570,1766592612354,-999.99,0.00014994,2]
[399665571,1766592612380,-188.4651769,0.00014995,2]
[399665572,1766592612406,-4264.19913124,0.00014995,2]
[399665573,1766592618809,600.42920832,0.00014737,2]
[399665577,1766592632066,-408.2574532,0.00015046,2]
[399665578,1766592632080,-192.17175509,0.00015046,2]
[399665579,1766592632090,-131.15749941,0.00015064,2]
[399665580,1766592632102,-142.36250059,0.00015064,2]
[399665581,1766592632112,-166.66,0.00015127,2]
[399665582,1766592632122,-150.27,0.00015136,2]
[399665583,1766592632133,-224.16527175,0.00015173,2]
[399665584,1766592632144,-500.85459949,0.00015173,2]
[399665585,1766592632154,-500.0,0.00015173,2]
[399665586,1766592632164,-500.0,0.00015173,2]
[399665587,1766592632174,-500.8778337,0.00015173,2]
[399665588,1766592632183,-500.0,0.00015173,2]
[399665589,1766592632194,-500.0,0.00015173,2]
[399665590,1766592632203,-500.0,0.00015173,2]
[399665591,1766592632214,-500.0,0.00015173,2]
[399665592,1766592632224,-500.0,0.00015173,2]
[399665593,1766592632233,-149.95276975,0.00015173,2]
[399665594,1766592632246,-15.92899371,0.00015173,2]
[399665595,1766592632256,-150.0,0.00015288,2]
[399665596,1766592632266,-117.35353829,0.00015288,2]
[399665597,1766592632279,-32.64646171,0.00015288,2]
[399665598,1766592632289,-150.0,0.00015288,2]
[399665599,1766592632299,-150.0,0.00015288,2]
[399665600,1766592632309,-151.77355229,0.00015288,2]
[399665602,1766592632321,-150.0,0.00015288,2]
[399665603,1766592632334,-150.0,0.00015288,2]
[399665604,1766592632343,-150.00000001,0.00015288,2]
[399665605,1766592632353,-150.62809167,0.00015288,2]
[399665606,1766592632364,-150.78065269,0.00015288,2]
[399665607,1766592632374,-150.0,0.00015288,2]
[399665609,1766592632383,-150.0,0.00015288,2]
[399665611,1766592632394,-500.0,0.0001531,2]
[399665613,1766592632404,-545.57149087,0.00015448,2]
[399665615,1766592632414,-150.0,0.0001553,2]
[399665617,1766592632424,-1000.0,0.00015721,2]
[399665619,1766592632434,-278.93975076,0.00015721,2]
[399665622,1766592632459,-721.06024924,0.00015721,2]
[399665624,1766592632469,-292.02657768,0.00015721,2]
[399665626,1766592632481,-657.85661962,0.00015721,2]
[399665628,1766592632493,-50.1168027,0.00015721,2]
[399665630,1766592632503,-294.4631973,0.00015721,2]
[399665633,1766592632516,-705.5368027,0.00015721,2]
[399665635,1766592632526,-10.98588066,0.00015721,2]
[399665637,1766592632538,-989.01411934,0.00015721,2]
[399665639,1766592632549,-712.239044,0.00015721,2]
[399665641,1766592632558,-1000.0,0.00015721,2]
[399665643,1766592632568,-151.0,0.00015756,2]
[399665645,1766592632577,-151.0,0.00015756,2]
[399665647,1766592632586,-151.0,0.00015758,2]
[399665649,1766592632596,-120.36079547,0.00015773,2]
[399665651,1766592632608,-29.63920453,0.00015773,2]
[399665653,1766592632618,-355.52510888,0.00015793,2]
[399665654,1766592632627,-92.34186853,0.00015822,2]
[399665655,1766592632639,-569.31587421,0.00015822,2]
[399665656,1766592632651,-338.34225726,0.00015822,2]
[399665657,1766592632661,-151.0,0.00015901,2]
[399665658,1766592632671,-611.41202524,0.00015996,2]
[399665659,1766592632683,-3078.20260405,0.00015996,2]
[399665660,1766592632696,-890.02592447,0.00015996,2]
[399665661,1766592632708,-519.99902324,0.00015996,2]
[399665662,1766592632741,-847.97823547,0.00015996,2]
[399665663,1766592632753,-607.56498033,0.00015996,2]
[399665687,1766592638022,-476.81295156,0.00015173,2]
[399665688,1766592638035,-23.18704844,0.00015173,2]
[399665689,1766592638045,-500.0,0.00015173,2]
[399665690,1766592638054,-600.42920829,0.00015355,2]
[399665691,1766592638065,-1000.0,0.00015721,2]
[399665692,1766592638075,-720.50931807,0.00015721,2]
[399665693,1766592638084,-151.0,0.00015936,2]
[399665694,1766592638094,-599.77159509,0.00015996,2]
[399665695,1766592638111,-21451.40390499,0.00015996,2]
[399665696,1766592638121,-500.0,0.00015999,2]
[399665697,1766592638132,-961.05,0.00015999,2]
[399665698,1766592638142,-236.37477528,0.00015999,2]
[399665699,1766592638152,-500.0,0.00015999,2]
[399665700,1766592638162,-500.0,0.00015999,2]
[399665701,1766592638172,-500.0,0.00015999,2]
[399665702,1766592638183,-500.0,0.00015999,2]
[399665703,1766592638194,-500.0,0.00015999,2]
[399665704,1766592638204,-500.0,0.00015999,2]
[399665705,1766592638214,-500.0,0.00015999,2]
[399665706,1766592638223,-500.0,0.00015999,2]
[399665707,1766592638233,-550.26882942,0.00015999,2]
[399665708,1766592638244,-500.0,0.00015999,2]
[399665709,1766592638254,-500.0,0.00015999,2]
[399665710,1766592638265,-500.0,0.00015999,2]
[399665711,1766592638275,-500.0,0.00015999,2]
[399665712,1766592638286,-500.0,0.00015999,2]
[399665713,1766592638296,-500.0,0.00015999,2]
[399665714,1766592638306,-500.0,0.00015999,2]
[399665715,1766592638316,-500.0,0.00015999,2]
[399665716,1766592638327,-500.0,0.00015999,2]
[399665717,1766592638337,-500.0,0.00015999,2]
[399665718,1766592638347,-214.95929311,0.00015999,2]
[399665719,1766592638357,-500.0,0.00015999,2]
[399665720,1766592638367,-500.0,0.00015999,2]
[399665721,1766592638378,-214.95929311,0.00015999,2]
[399665722,1766592638388,-289.64440683,0.00015999,2]
[399665723,1766592638398,-500.0,0.00015999,2]
[399665724,1766592638408,-500.0,0.00015999,2]
[399665725,1766592638418,-500.0,0.00015999,2]
[399665727,1766592638428,-548.53234383,0.00015999,2]
[399665729,1766592638438,-500.0,0.00015999,2]
[399665731,1766592638450,-500.0,0.00015999,2]
[399665733,1766592638460,-214.95929311,0.00015999,2]
[399665735,1766592638470,-500.0,0.00015999,2]
[399665737,1766592638479,-500.0,0.00015999,2]
[399665739,1766592638489,-500.0,0.00015999,2]
[399665741,1766592638499,-214.95929311,0.00015999,2]
[399665744,1766592638509,-500.0,0.00015999,2]
[399665746,1766592638518,-500.0,0.00015999,2]
[399665748,1766592638528,-214.95929311,0.00015999,2]
[399665750,1766592638539,-500.0,0.00015999,2]
[399665753,1766592638549,-500.0,0.00015999,2]
[399665755,1766592638560,-214.95929311,0.00015999,2]
[399665757,1766592638570,-500.0,0.00015999,2]
[399665759,1766592638580,-500.0,0.00015999,2]
[399665761,1766592638590,-214.95929311,0.00015999,2]
[399665763,1766592638600,-500.0,0.00015999,2]
[399665765,1766592638610,-500.0,0.00015999,2]
[399665767,1766592638619,-214.95929311,0.00015999,2]
[399665769,1766592638629,-500.0,0.00015999,2]
[399665771,1766592638639,-500.0,0.00015999,2]
[399665773,1766592638649,-214.95929311,0.00015999,2]
[399665779,1766592638860,-500.0,0.00015999,2]
[399665780,1766592638896,-500.0,0.00015999,2]
[399665781,1766592638907,-214.95929311,0.00015999,2]
[399665782,1766592638916,-500.0,0.00015999,2]
[399665783,1766592638928,-214.95929311,0.00015999,2]
[399665784,1766592638938,-500.0,0.00015999,2]
[399665785,1766592638947,-500.0,0.00015999,2]
[399665786,1766592638958,-500.0,0.00015999,2]
[399665787,1766592638968,-214.95929311,0.00015999,2]
[399665788,1766592638979,-500.0,0.00015999,2]
[399665789,1766592638988,-500.0,0.00015999,2]
[399665790,1766592638998,-214.95929311,0.00015999,2]
[399665791,1766592639008,-500.0,0.00015999,2]
[399665792,1766592639018,-500.0,0.00015999,2]
[399665793,1766592639028,-214.95929311,0.00015999,2]
[399665794,1766592639039,-101494.98071277,0.00016,2]
[399665795,1766592639049,-2299.99999802,0.00016,2]
[399665796,1766592639060,-600.0,0.00016006,2]
[399665797,1766592639070,-300.0,0.00016006,2]
[399665798,1766592639079,-193.0,0.00016006,2]
[399665799,1766592639090,-195.0,0.00016006,2]
[399665800,1766592639100,-300.0,0.00016006,2]
[399665801,1766592639111,-195.0,0.00016006,2]
[399665802,1766592639121,-150.0,0.00016016,2]
[399665803,1766592639131,-255.0,0.00016028,2]
[399665804,1766592639141,-151.0,0.00016062,2]
[399665805,1766592639151,-500.0,0.00016064,2]
[399665806,1766592639161,-553.82359003,0.00016064,2]
[399665807,1766592639171,-257.32789535,0.00016064,2]
[399665808,1766592639181,-500.0,0.00016064,2]
[399665809,1766592639191,-647.91273552,0.00016064,2]
[399665810,1766592639201,-500.0,0.00016064,2]
[399665811,1766592639212,-500.0,0.00016064,2]
[399665812,1766592639223,-500.0,0.00016064,2]
[399665813,1766592639233,-500.0,0.00016064,2]
[399665814,1766592639243,-195.0,0.00016087,2]
[399665815,1766592639254,-300.0,0.00016087,2]